bitfinex/quotes_ETHUSD_20240811
["timestamp","ask_amount","ask_price","bid_price","bid_amount"]
[1723391296756,2.6716,2620.2,2619.6,2.67208]
[1723391296929,2.6716,2620.2,2619.6,5.34415]
[1723391297131,2.6716,2620.2,2619.7,2.67204]
[1723391297341,2.6716,2620.2,2619.7,3.773659]
[1723391297533,4.92144,2620.3,2619.8,2.67195]
[1723391297756,2.25,2620.3,2619.8,2.67195]
[1723391298085,4.92147,2620.3,2619.8,2.67195]
[1723391298284,4.92147,2620.3,2619.7,1.101619]
[1723391298285,2.67168,2620.1,2619.7,1.101619]
[1723391298662,2.67156,2620.2,2619.7,3.773659]
[1723391299191,2.25,2620.3,2619.8,2.67195]
[1723391299362,2.25,2620.3,2619.8,5.9883849]
[1723391299682,4.92145,2620.3,2619.8,3.3164349]
[1723391300193,7.3,2620.7,2619.8,3.3164349]
[1723391300194,9.97109,2620.7,2620.0,2.67175]
[1723391300485,9.97104,2620.7,2620.2,2.67149]
[1723391300692,2.67099,2620.8,2620.3,2.74768127]
[1723391300989,2.67099,2620.8,2620.3,2.67136]
[1723391301160,2.67108,2620.7,2620.2,2.67149]
[1723391301661,2.67127,2620.5,2620.1,3.17763802]
[1723391301859,2.67127,2620.5,2620.1,2.67164]
[1723391302749,2.67105,2620.7,2620.2,2.67154]
[1723391303185,5.34216,2620.7,2620.2,2.67154]
[1723391303571,2.6713,2620.5,2620.0,2.67175]
[1723391303777,5.14586,2620.9,2619.7,7.35]
[1723391303778,2.6717,2620.1,2619.7,7.35]
[1723391303984,2.6717,2620.1,2618.9,12.43]
[1723391303985,2.6719,2619.9,2619.3,2.3119]
[1723391304293,4.92136,2620.4,2619.3,2.3119]
[1723391304294,2.67147,2620.3,2619.3,2.3119]
[1723391304497,2.67221,2619.6,2619.1,2.67261]
[1723391304651,2.67221,2619.6,2618.9,2.6728]
[1723391304854,2.67245,2619.4,2618.8,2.67289]
[1723391305282,2.67255,2619.3,2618.8,2.67289]
[1723391305448,2.25,2619.7,2618.4,5.06652]
[1723391305449,2.67258,2619.2,2618.4,5.06652]
[1723391305655,2.4222,2619.1,2617.7,4.76758879]
[1723391305986,5.34609,2618.8,2618.1,2.67369]
[1723391306194,2.4222,2619.1,2618.1,2.67366]
[1723391306396,2.67308,2618.7,2618.1,2.940996]
[1723391306887,2.67308,2618.7,2618.1,5.614626]
[1723391307082,2.67308,2618.7,2618.1,2.940996]
[1723391307508,2.67307,2618.8,2618.1,2.940986]
[1723391307798,2.67311,2618.7,2618.1,2.940996]
[1723391308349,2.6732,2618.6,2618.1,2.940996]
[1723391308550,2.67318,2618.6,2617.9,2.67382]
[1723391308751,2.67329,2618.5,2617.9,2.67382]
[1723391308951,2.67349,2618.3,2617.8,2.67398]
[1723391309196,2.67349,2618.3,2617.8,3.180698]
[1723391309374,2.67339,2618.4,2617.8,3.180698]
[1723391309755,2.67339,2618.4,2617.8,5.854628]
[1723391310207,2.67324,2618.6,2617.9,2.67383]
[1723391310352,5.34651,2618.6,2618.0,2.99944433]
[1723391310557,2.67324,2618.6,2618.0,2.99944433]
[1723391310754,5.34649,2618.6,2618.0,0.32569433]
[1723391310960,3.31541905,2618.9,2617.8,3.180708]
[1723391311174,2.67345,2618.4,2617.8,3.180708]
[1723391311559,5.34691,2618.4,2617.8,3.180708]
[1723391311962,2.67345,2618.4,2617.9,2.67387]
[1723391313065,2.67322,2618.6,2617.9,2.6738]
[1723391313270,2.67322,2618.6,2618.0,0.3180588]
[1723391313496,2.67314,2618.7,2618.1,2.67363]
[1723391313679,2.6732,2618.6,2618.1,2.67363]
[1723391313994,5.34645,2618.6,2618.1,0.57419191]
[1723391314295,2.6732,2618.6,2618.1,3.24785191]
[1723391314972,2.6732,2618.6,2618.1,2.67366]
[1723391315380,2.67331,2618.5,2617.9,5.34765]
[1723391315696,2.67331,2618.5,2617.8,0.506718]
[1723391315697,2.67303,2618.8,2618.2,2.67353]
[1723391316298,2.67303,2618.8,2618.3,2.67345]
[1723391316750,7.3,2618.9,2618.3,3.20816]
[1723391317040,7.3,2618.9,2618.4,2.74968301]
[1723391317196,7.3,2618.9,2618.5,2.67327]
[1723391317401,2.67279,2619.0,2618.3,2.3932]
[1723391317701,2.673,2618.8,2618.2,2.67353]
[1723391317924,2.67279,2619.0,2618.4,2.67333]
[1723391318129,2.67278,2619.0,2618.5,0.267333]
[1723391318432,2.67278,2619.0,2618.4,2.67333]
[1723391318433,2.67289,2618.9,2618.4,2.67333]
[1723391318743,2.4222,2619.1,2617.8,3.0]
[1723391318901,5.34673,2618.5,2617.9,2.67384]
[1723391319310,2.67339,2618.4,2617.9,0.774094]
[1723391320491,2.6735,2618.3,2617.9,0.774094]
[1723391320810,2.6735,2618.3,2617.8,5.34784]
[1723391320997,2.6735,2618.3,2617.8,2.6739]
[1723391321321,2.67336,2618.5,2617.8,2.6739]
[1723391321631,2.67343,2618.4,2617.8,5.34791]
[1723391321926,2.6735,2618.3,2617.8,2.67391]
[1723391322151,2.6735,2618.3,2617.8,5.34785]
[1723391322440,2.67336,2618.5,2617.8,5.34785]
[1723391322441,2.67336,2618.5,2617.8,2.941301]
[1723391322641,2.67336,2618.5,2618.0,2.67373]
[1723391322863,5.34671,2618.5,2618.0,2.67373]
[1723391323041,2.67339,2618.4,2617.8,2.941301]
[1723391323376,5.34673,2618.5,2618.0,2.67377]
[1723391323858,5.34673,2618.5,2617.8,2.941301]
[1723391323859,2.67339,2618.4,2617.9,2.67385]
[1723391324213,2.67329,2618.5,2617.9,2.67382]
[1723391324419,2.67338,2618.4,2618.0,2.67374]
[1723391324832,5.34665,2618.5,2618.0,2.67374]
[1723391325370,2.67339,2618.4,2617.8,2.67389]
[1723391326055,2.67339,2618.4,2617.9,2.67389]
[1723391326632,2.4222,2618.6,2617.7,2.67403]
[1723391327860,2.67355,2618.3,2617.7,2.67403]
[1723391328062,2.67359,2618.2,2617.7,2.67403]
[1723391328224,5.34724,2618.2,2617.7,2.67403]
[1723391328424,2.67359,2618.2,2617.7,3.748229]
[1723391328625,2.67332,2618.5,2617.9,2.67388]
[1723391328836,2.67339,2618.4,2617.9,2.67388]
[1723391329439,2.67339,2618.4,2617.9,2.67384]
[1723391329640,2.67329,2618.5,2618.0,2.67379]
[1723391329977,2.67339,2618.4,2617.9,2.67388]
[1723391330120,2.67333,2618.5,2617.7,2.75040272]
[1723391330559,2.67333,2618.5,2618.0,2.67376]
[1723391330960,5.34688,2618.4,2617.8,5.34786]
[1723391331256,2.6735,2618.3,2617.8,5.34786]
[1723391331483,5.09545,2618.6,2617.9,2.67387]
[1723391331835,5.09545,2618.6,2617.8,2.67392]
[1723391331836,2.67351,2618.3,2617.8,2.67392]
[1723391332564,2.67347,2618.4,2617.8,5.34786]
[1723391332767,5.09544,2618.6,2618.1,2.67362]
[1723391333074,2.67337,2618.5,2617.9,2.67383]
[1723391333274,5.09544,2618.6,2617.9,3.208616]
[1723391333275,2.67339,2618.4,2617.9,3.208616]
[1723391334150,7.3,2619.2,2618.8,2.6729]
[1723391334348,2.67263,2619.2,2618.8,0.534604]
[1723391334534,2.67263,2619.2,2618.7,2.67307]
[1723391334941,7.65842,2619.4,2618.7,2.67301]
[1723391335287,7.3,2619.5,2619.0,2.67276]
[1723391335497,7.3,2619.5,2619.1,2.67262]
[1723391335645,4.98573,2619.7,2619.2,5.34506]
[1723391335646,2.67208,2619.7,2619.2,5.34506]
[1723391335848,7.3,2619.8,2619.2,2.67256]
[1723391336050,9.97204,2619.8,2619.2,2.67251]
[1723391336251,9.97204,2619.8,2619.3,2.67244]
[1723391336478,12.64406,2619.8,2619.2,2.67251]
[1723391336673,9.97202,2619.8,2619.3,2.67245]
[1723391337076,9.97201,2619.8,2619.2,2.67251]
[1723391337279,2.67206,2619.7,2619.2,2.67251]
[1723391337465,9.97201,2619.8,2619.2,2.67251]
[1723391337790,9.97201,2619.8,2619.2,3.0601015]
[1723391338150,7.3,2619.8,2619.2,3.0601015]
[1723391338354,7.3,2619.8,2619.4,2.67236]
[1723391338593,7.3,2619.8,2619.2,5.7326015]
[1723391338791,7.3,2619.8,2619.3,2.67245]
[1723391339293,9.97196,2619.8,2619.2,3.0600715]
[1723391339790,12.644,2619.8,2619.2,3.0600715]
[1723391339968,2.67208,2619.7,2619.2,2.67248]
[1723391340165,2.3136,2619.6,2618.3,2.4458]
[1723391340360,2.3136,2619.6,2618.6,2.67308]
[1723391340361,2.67262,2619.2,2618.6,2.67308]
[1723391340953,2.67262,2619.2,2618.7,2.67302]
[1723391341354,2.3136,2619.6,2618.4,0.24458]
[1723391341579,2.67202,2619.8,2619.1,2.6726]
[1723391341788,2.67211,2619.7,2619.2,2.67255]
[1723391342490,2.939222,2619.8,2619.3,5.34485]
[1723391342696,2.67202,2619.8,2619.3,5.34485]
[1723391342918,2.67202,2619.8,2619.3,5.34481]
[1723391342919,3.206404,2619.8,2619.3,5.34481]
[1723391343076,0.534384,2619.8,2619.4,2.67236]
[1723391343276,2.67182,2620.0,2619.4,5.34459]
[1723391343484,2.67191,2619.9,2619.4,2.67228]
[1723391343666,2.67191,2619.9,2619.2,2.67253]
[1723391343667,2.67199,2619.8,2619.2,2.67253]
[1723391343871,2.67206,2619.7,2619.2,2.6725]
[1723391344100,2.67191,2619.9,2619.2,2.6725]
[1723391344101,2.67191,2619.9,2619.4,2.67235]
[1723391344417,2.67221,2619.6,2619.0,2.67271]
[1723391345304,2.67237,2619.4,2618.7,2.67305]
[1723391345615,2.67253,2619.3,2618.7,2.67302]
[1723391345912,2.6726,2619.2,2618.7,2.67302]
[1723391346822,2.6726,2619.2,2618.5,2.67323]
[1723391346823,9.7589,2619.5,2618.9,2.67281]
[1723391347186,9.7589,2619.5,2618.4,5.52008]
[1723391347381,2.67246,2619.4,2618.8,2.67297]
[1723391347770,9.7589,2619.5,2619.0,2.67277]
[1723391347967,7.3,2619.5,2619.0,2.67277]
[1723391348307,7.3,2619.5,2619.2,2.67249]
[1723391348511,7.3,2619.5,2619.0,5.34538]
[1723391348708,7.3,2619.5,2619.1,2.67267]
[1723391348886,7.3,2619.5,2619.0,2.67268]
[1723391349272,9.97227,2619.5,2619.0,5.34539]
[1723391350006,2.67242,2619.4,2618.8,2.67291]
[1723391350213,5.34458,2619.5,2618.9,2.67281]
[1723391350424,14.86211,2619.7,2619.0,2.67277]
[1723391350601,12.19,2619.7,2619.1,0.267277]
[1723391350909,14.86211,2619.7,2619.2,2.67251]
[1723391351382,14.86211,2619.7,2618.8,2.67291]
[1723391351383,2.67256,2619.3,2618.8,2.67291]
[1723391351573,2.4589,2619.6,2618.8,2.67296]
[1723391351780,2.67228,2619.5,2619.0,5.34546]
[1723391351988,5.13111,2619.6,2619.1,2.67267]
[1723391352221,5.13111,2619.6,2618.9,2.67287]
[1723391352222,2.67244,2619.4,2618.9,2.67287]
[1723391352876,2.67257,2619.2,2618.7,2.67298]
[1723391353391,2.4589,2619.1,2618.4,0.24458]
[1723391353588,2.4589,2619.1,2618.7,2.67302]
[1723391353788,5.13137,2619.3,2618.7,2.67302]
[1723391354054,2.67257,2619.2,2618.7,2.67307]
[1723391354488,2.67283,2619.0,2618.5,2.67319]
[1723391354687,2.67268,2619.1,2618.6,2.67315]
[1723391355302,2.67263,2619.2,2618.5,2.67319]
[1723391355487,2.67278,2619.0,2618.5,5.34642]
[1723391355825,2.67278,2619.0,2618.5,2.67319]
[1723391356611,3.2124972,2619.2,2618.7,2.67307]
[1723391356774,2.67262,2619.2,2618.7,2.67307]
[1723391356974,5.34527,2619.2,2618.7,2.67307]
[1723391357177,2.67278,2619.0,2618.5,2.67319]
[1723391357678,2.4589,2619.3,2618.4,0.24458]
[1723391357880,2.4589,2619.3,2618.6,2.67311]
[1723391358087,2.67258,2619.2,2618.7,2.673]
[1723391358279,2.67258,2619.2,2618.8,2.67297]
[1723391358901,12.64486,2619.4,2618.9,2.67286]
[1723391359212,2.67253,2619.3,2618.8,4.94847]
[1723391359620,9.97243,2619.4,2618.9,2.67282]
[1723391359928,7.3,2619.4,2619.0,2.67272]
[1723391360576,9.97237,2619.4,2618.9,2.67287]
[1723391360775,9.97237,2619.4,2619.0,2.67277]
[1723391360985,7.3,2619.4,2619.0,2.67271]
[1723391362117,17.32111,2619.6,2619.0,2.67271]
[1723391362118,9.97208,2619.7,2619.2,2.67255]
[1723391363124,2.67217,2619.6,2619.2,2.67255]
[1723391363810,2.67217,2619.6,2619.1,2.67266]
[1723391364208,2.67217,2619.6,2618.8,2.67292]
[1723391364209,2.4589,2619.6,2618.8,2.67292]
[1723391364402,2.4589,2619.6,2618.9,2.67285]
[1723391364746,2.67232,2619.5,2619.0,2.67272]
[1723391365482,2.4589,2619.6,2619.1,2.67261]
[1723391365706,5.13113,2619.6,2619.0,2.67272]
[1723391365916,2.4589,2619.6,2619.0,2.67272]
[1723391366122,2.67227,2619.5,2619.0,2.67272]
[1723391366621,5.34459,2619.5,2619.0,2.67272]
[1723391367189,2.67227,2619.5,2619.0,2.67272]
[1723391367512,2.67227,2619.5,2619.0,5.34542]
[1723391367712,2.67227,2619.5,2619.0,3.207242]
[1723391367908,2.67227,2619.5,2619.0,2.6727]
[1723391368589,9.97211,2619.7,2618.7,2.673]
[1723391368590,2.2786,2619.2,2618.7,2.673]
[1723391369103,4.95117,2619.2,2618.7,2.673]
[1723391369483,2.67267,2619.1,2618.6,2.964889]
[1723391369688,2.2786,2619.2,2618.7,2.67305]
[1723391370298,2.67244,2619.4,2618.9,2.67285]
[1723391370497,2.2786,2619.5,2618.9,2.67285]
[1723391370696,2.2786,2619.5,2618.5,2.67323]
[1723391370697,2.67261,2619.2,2618.7,2.67306]
[1723391370897,2.6727,2619.1,2618.6,2.67313]
[1723391371248,2.2786,2619.1,2618.7,2.67307]
[1723391371725,4.95128,2619.1,2618.7,2.67307]
[1723391372837,2.2786,2619.1,2618.7,5.34609]
[1723391373045,2.2786,2619.1,2618.7,2.67302]
[1723391374417,12.25099,2619.4,2618.9,2.67281]
[1723391374806,12.25099,2619.4,2619.0,2.67275]
[1723391376041,9.5786,2619.4,2619.0,2.67275]
[1723391376350,7.3,2619.4,2619.1,2.67266]
[1723391377034,7.3,2619.4,2619.1,2.67261]
[1723391379510,7.3,2619.4,2619.1,0.267261]
[1723391379709,2.67222,2619.6,2619.1,2.939831]
[1723391380526,2.2786,2619.7,2619.3,2.67242]
[1723391381517,2.2786,2619.7,2619.2,2.67254]
[1723391382153,4.95073,2619.7,2619.2,2.67254]
[1723391382316,4.95073,2619.7,2619.1,3.01620528]
[1723391382317,2.67222,2619.6,2619.1,2.939911]
[1723391383028,2.2786,2619.7,2619.2,2.67251]
[1723391383357,4.95068,2619.7,2619.2,2.67251]
[1723391384334,4.95068,2619.7,2619.3,5.34486]
[1723391384335,2.2786,2619.7,2619.3,5.34486]
[1723391384529,2.2786,2619.7,2619.4,2.67235]
[1723391384760,7.3,2619.8,2619.4,2.67235]
[1723391385062,9.97196,2619.8,2619.4,2.67235]
[1723391385667,2.67196,2619.8,2619.4,2.67235]
[1723391385961,2.4466,2619.9,2619.5,2.67223]
[1723391386333,2.67201,2619.8,2619.3,2.67246]
[1723391386532,2.4466,2619.9,2619.4,2.6723]
[1723391386533,5.11846,2619.9,2619.4,2.6723]
[1723391386753,2.4466,2619.9,2619.5,2.67225]
[1723391387054,2.6718,2620.0,2619.5,2.67225]
[1723391387261,2.6718,2620.0,2619.6,2.67216]
[1723391387671,12.41825,2620.1,2619.6,2.67216]
[1723391387959,12.19,2620.4,2619.9,2.67178]
[1723391388167,12.4179,2620.5,2620.0,3.206122]
[1723391388330,5.34277,2620.4,2620.0,0.534372]
[1723391388529,2.67146,2620.3,2620.0,0.534372]
[1723391389564,2.67164,2620.2,2619.7,2.67205]
[1723391389769,2.67155,2620.2,2619.5,3.20755751]
[1723391389920,2.67155,2620.2,2619.6,2.67215]
[1723391390125,2.67173,2620.1,2619.6,3.26011875]
[1723391390365,2.67173,2620.1,2619.6,2.67215]
[1723391390736,2.67177,2620.0,2619.6,2.67215]
[1723391390935,2.4466,2620.4,2619.3,3.18144921]
[1723391391260,5.11854,2619.9,2619.3,2.67246]
[1723391391462,2.67221,2619.6,2619.1,2.3553]
[1723391391673,2.958454,2619.9,2619.4,2.67234]
[1723391391674,7.3,2619.9,2619.4,2.67234]
[1723391391967,7.3,2619.9,2619.7,2.67206]
[1723391392142,2.67158,2620.2,2619.7,2.67206]
[1723391392328,2.67165,2620.1,2619.6,2.67216]
[1723391393176,2.67193,2619.9,2619.3,5.02771]
[1723391393327,5.34385,2619.9,2619.3,5.02771]
[1723391393524,5.34385,2619.9,2619.4,2.67232]
[1723391393525,2.67192,2619.9,2619.4,2.67232]
[1723391393744,2.67192,2619.9,2619.4,3.21190292]
[1723391394724,2.67175,2620.0,2619.5,2.67221]
[1723391395063,2.67168,2620.1,2619.6,2.67216]
[1723391395467,5.34339,2620.1,2619.6,2.67216]
[1723391395760,9.97149,2620.3,2619.7,2.67197]
[1723391395959,9.97149,2620.3,2619.6,0.58840629]
[1723391395960,2.67171,2620.1,2619.6,0.58840629]
[1723391396125,2.67171,2620.1,2619.6,3.26053629]
[1723391396330,2.67171,2620.1,2619.4,0.53958292]
[1723391396331,2.67198,2619.8,2619.4,0.53958292]
[1723391396645,2.67198,2619.8,2619.3,2.67236]
[1723391396646,2.67198,2619.8,2619.3,5.34477]
[1723391396849,5.11845,2619.9,2619.4,2.67235]
[1723391397224,2.67201,2619.8,2619.3,2.67236]
[1723391397424,2.67198,2619.8,2619.3,6.114799]
[1723391397755,9.97147,2620.3,2619.3,6.114799]
[1723391397756,2.67171,2620.1,2619.5,5.0275]
[1723391397959,5.34343,2620.1,2619.5,7.6997]
[1723391398151,2.67176,2620.0,2619.5,5.0275]
[1723391398356,2.67171,2620.1,2619.5,5.0275]
[1723391398357,2.6717,2620.1,2619.5,7.69969]
[1723391398556,2.4466,2620.2,2619.6,2.67216]
[1723391398764,9.97151,2620.3,2619.8,2.67189]
[1723391399369,9.97151,2620.3,2619.7,2.67205]
[1723391399370,12.643,2620.3,2619.7,2.67205]
[1723391400044,9.9715,2620.3,2619.7,2.67205]
[1723391400384,12.64302,2620.3,2619.7,2.67205]
[1723391400664,2.67156,2620.2,2619.7,2.67205]
[1723391401663,2.67156,2620.2,2619.8,2.67194]
[1723391402127,7.3,2620.3,2620.0,2.67175]
[1723391402334,2.4466,2620.5,2620.1,2.67164]
[1723391402652,2.4466,2620.5,2619.8,2.67188]
[1723391402868,5.11789,2620.5,2620.0,2.67175]
[1723391403281,5.11789,2620.5,2620.0,5.34344]
[1723391403443,5.11789,2620.5,2620.0,2.67169]
[1723391403777,2.67135,2620.4,2619.6,2.67208]
[1723391403982,2.67155,2620.2,2619.7,2.67201]
[1723391404346,2.67155,2620.2,2619.8,2.67194]
[1723391404684,5.34285,2620.4,2619.9,2.67185]
[1723391405242,2.67145,2620.3,2619.8,0.534402]
[1723391405458,2.67164,2620.2,2619.6,2.67208]
[1723391405654,2.67168,2620.1,2619.6,2.67208]
[1723391406074,2.67164,2620.2,2619.6,2.67208]
[1723391406075,2.67176,2620.0,2619.6,2.67208]
[1723391406618,2.67165,2620.1,2619.6,2.67208]
[1723391407082,2.67177,2620.0,2619.6,2.67208]
[1723391407289,2.67177,2620.0,2619.6,0.8202435]
[1723391407487,2.67177,2620.0,2619.6,3.4923935]
[1723391407691,2.4698,2620.1,2619.6,3.4923935]
[1723391407692,5.14145,2620.1,2619.6,3.4923935]
[1723391407851,2.67165,2620.1,2619.6,3.4923935]
[1723391408283,2.67145,2620.3,2619.8,2.67187]
[1723391408665,2.67155,2620.2,2619.8,2.67187]
[1723391410092,9.97135,2620.4,2619.9,2.67179]
[1723391410300,7.3,2620.4,2620.0,2.67175]
[1723391410528,9.97136,2620.4,2619.9,5.66437293]
[1723391410818,2.67155,2620.2,2619.7,5.65651935]
[1723391411113,15.1126,2620.4,2619.8,2.67194]
[1723391411292,12.44116,2620.4,2619.8,2.67194]
[1723391411615,2.67146,2620.3,2619.8,2.6719]
[1723391411913,5.34299,2620.3,2619.8,3.446259]
[1723391412120,2.67177,2620.0,2619.5,2.67225]
[1723391412434,2.672,2619.8,2619.3,2.67246]
[1723391412596,2.672,2619.8,2619.3,2.97246]
[1723391413020,2.672,2619.8,2619.2,5.0722]
[1723391413021,2.4698,2619.9,2618.9,2.6752]
[1723391413185,2.67258,2619.2,2618.6,7.7459]
[1723391413520,2.67258,2619.2,2618.7,2.67306]
[1723391414497,5.3454,2619.1,2618.6,5.07288]
[1723391414727,2.67267,2619.1,2618.6,5.07282]
[1723391415240,2.67267,2619.1,2618.1,2.67366]
[1723391415241,2.67293,2618.9,2618.3,2.67343]
[1723391415384,2.4698,2619.0,2618.3,3.448095]
[1723391415728,5.14259,2619.0,2618.5,2.67328]
[1723391416999,5.14262,2619.0,2618.5,5.3465]
[1723391417195,2.4698,2619.0,2618.5,2.67322]
[1723391417399,2.67233,2619.5,2618.7,2.3997]
[1723391417588,9.97221,2619.6,2619.1,2.67266]
[1723391417801,3.0,2619.5,2619.1,2.67266]
[1723391418203,7.3,2619.6,2619.3,2.67245]
[1723391418405,2.67201,2619.8,2619.3,2.67241]
[1723391418613,12.19,2619.9,2619.4,2.67235]
[1723391418803,12.19,2619.9,2619.5,2.67225]
[1723391419216,12.19,2619.9,2619.3,2.67239]
[1723391419427,2.67203,2619.8,2619.3,2.67239]
[1723391419638,12.44161,2620.0,2619.5,2.67225]
[1723391420832,12.44161,2620.0,2619.3,2.74870803]
[1723391421010,12.44161,2620.0,2619.5,2.67224]
[1723391422094,12.44161,2620.0,2619.3,2.67236]
[1723391422295,2.67216,2619.6,2619.1,5.34518]
[1723391422534,2.67216,2619.6,2619.1,2.67259]
[1723391422840,2.6724,2619.4,2618.9,2.3997]
[1723391423133,5.34483,2619.4,2618.8,2.67292]
[1723391423343,2.4698,2619.6,2618.5,2.67322]
[1723391423511,2.4698,2619.5,2618.3,2.3997]
[1723391423716,7.8161,2618.7,2618.1,2.67362]
[1723391424035,2.67318,2618.6,2618.1,2.67362]
[1723391424238,2.67318,2618.6,2618.0,2.67379]
[1723391424439,2.67318,2618.6,2617.9,5.07352]
[1723391424600,2.67318,2618.6,2618.0,0.507352]
[1723391425436,2.435,2618.3,2617.7,2.67403]
[1723391425735,2.67366,2618.2,2617.6,2.67417]
[1723391425912,5.34734,2618.2,2617.7,0.534842]
[1723391426118,2.6738,2618.0,2617.5,2.67425]
[1723391426739,2.67371,2618.1,2617.5,2.67424]
[1723391427425,2.67371,2618.1,2617.5,5.34848]
[1723391427624,2.67389,2617.9,2617.4,2.67435]
[1723391427829,2.67389,2617.9,2617.3,5.34893]
[1723391428016,2.67389,2617.9,2617.2,2.6746]
[1723391428017,2.67411,2617.7,2617.2,2.6746]
[1723391428195,2.67411,2617.7,2617.2,3.435175]
[1723391428840,2.435,2618.2,2617.5,2.6743]
[1723391429045,2.435,2618.5,2617.6,2.75058079]
[1723391429211,2.67341,2618.4,2617.8,2.67394]
[1723391429538,7.3,2618.8,2618.2,2.67353]
[1723391429539,12.40806,2618.8,2618.2,2.67353]
[1723391429745,9.735,2618.8,2618.2,2.67353]
[1723391429896,7.3,2618.8,2618.2,5.42340918]
[1723391430099,7.3,2618.8,2618.3,0.54234092]
[1723391430100,9.97303,2618.8,2618.3,0.54234092]
[1723391430398,2.67319,2618.6,2618.3,0.54234092]
[1723391430634,2.67319,2618.6,2618.0,5.34746]
[1723391430836,2.67319,2618.6,2618.0,2.67373]
[1723391431020,2.67319,2618.6,2618.0,5.34746]
[1723391431402,2.67319,2618.6,2618.1,2.67365]
[1723391431604,2.67319,2618.6,2618.1,3.2351274]
[1723391432239,7.3,2618.8,2618.4,2.67333]
[1723391432608,7.3,2618.8,2618.4,5.34665]
[1723391432810,9.97299,2618.8,2618.4,0.54230273]
[1723391433009,2.67309,2618.7,2618.1,0.5614774]
[1723391433206,9.97299,2618.8,2618.1,3.2350974]
[1723391433514,7.3,2618.8,2618.2,0.07637958]
[1723391433841,2.67273,2619.1,2618.5,2.67319]
[1723391434006,2.67263,2619.2,2618.6,2.940439]
[1723391434205,2.67263,2619.2,2618.7,2.67304]
[1723391434556,2.67269,2619.1,2618.6,2.940439]
[1723391434762,2.67269,2619.1,2618.6,2.67312]
[1723391435255,7.3,2619.3,2618.6,2.67312]
[1723391435256,9.97253,2619.3,2618.6,2.67312]
[1723391435453,2.67279,2619.0,2618.4,2.67332]
[1723391435652,2.67279,2619.0,2618.3,0.07637076]
[1723391435807,2.67287,2618.9,2618.4,2.67338]
[1723391436010,2.67304,2618.8,2618.2,2.67352]
[1723391436207,5.10787,2618.9,2617.9,2.523894]
[1723391436208,2.67324,2618.6,2617.9,2.523894]
[1723391436450,2.67324,2618.6,2617.9,2.941224]
[1723391436683,2.67324,2618.6,2618.0,2.67374]
[1723391436684,2.67332,2618.5,2618.0,2.67374]
[1723391436809,2.67324,2618.6,2618.0,2.67374]
[1723391436810,5.34651,2618.6,2618.0,2.67374]
[1723391437012,2.67324,2618.6,2618.0,2.67374]
[1723391437211,2.67324,2618.6,2618.0,3.2352364]
[1723391437520,2.67324,2618.6,2618.0,0.5614964]
[1723391437521,2.67342,2618.4,2618.0,0.5614964]
[1723391437746,5.34709,2618.3,2617.7,2.67403]
[1723391437948,2.67366,2618.2,2617.7,2.67403]
[1723391438114,2.67369,2618.1,2617.5,5.34846]
[1723391438315,2.67369,2618.1,2617.6,2.67415]
[1723391438817,2.67369,2618.1,2617.5,6.108956]
[1723391439018,2.67395,2617.9,2617.3,2.67445]
[1723391439233,2.6741,2617.7,2617.2,2.67452]
[1723391439458,2.435,2617.8,2617.3,2.74596213]
[1723391439749,5.10906,2617.8,2617.3,2.74596213]
[1723391440119,2.67411,2617.7,2617.3,0.07146213]
[1723391440311,2.435,2617.8,2617.3,0.07146213]
[1723391440523,5.10875,2618.1,2617.5,2.67423]
[1723391440728,5.10875,2618.1,2617.5,5.34846]
[1723391441039,7.7825,2618.1,2617.5,2.67423]
[1723391441254,2.435,2618.1,2617.5,3.21673725]
[1723391441565,12.64714,2618.3,2617.9,2.67389]
[1723391441566,7.3,2618.3,2617.9,2.67389]
[1723391441727,12.97323,2618.6,2618.1,2.67367]
[1723391441928,2.435,2618.7,2618.1,2.940997]
[1723391442150,5.10808,2618.7,2618.1,5.614637]
[1723391442335,2.435,2618.7,2618.1,2.940997]
[1723391442546,22.16295,2618.9,2618.4,2.67337]
[1723391442737,2.67288,2618.9,2618.3,2.67341]
[1723391443530,2.67298,2618.8,2618.3,2.67341]
[1723391443859,2.67288,2618.9,2618.4,2.67335]
[1723391444037,2.67288,2618.9,2618.5,2.67328]
[1723391444377,9.97267,2619.2,2618.7,2.67306]
[1723391444669,3.0,2619.1,2618.7,2.67307]
[1723391446426,2.435,2619.3,2618.7,2.67299]
[1723391446765,9.97231,2619.5,2618.3,3.24517397]
[1723391446766,2.67273,2619.1,2618.3,3.24517397]
[1723391446964,2.67288,2618.9,2618.3,2.67342]
[1723391447130,2.67288,2618.9,2618.4,2.67333]
[1723391447542,5.34583,2618.9,2618.3,2.67342]
[1723391447743,2.67288,2618.9,2618.3,2.67342]
[1723391448383,5.34581,2618.9,2618.3,2.67342]
[1723391448742,2.67298,2618.8,2618.3,2.67342]
[1723391448942,2.67239,2619.4,2618.3,2.67342]
[1723391448943,2.67257,2619.2,2618.7,2.67307]
[1723391449188,5.08427,2619.4,2618.8,2.67289]
[1723391449552,5.08427,2619.4,2618.9,2.67287]
[1723391449886,2.6726,2619.2,2618.7,2.673]
[1723391450241,2.4119,2618.7,2618.1,2.67363]
[1723391450445,2.67324,2618.6,2618.1,2.67363]
[1723391451166,2.67341,2618.4,2617.7,2.67406]
[1723391451368,2.67354,2618.3,2617.7,2.67404]